lending/lending_fUSD_20250425
["ID","MTS","AMOUNT","RATE_DAILY","PERIOD"]
[358998601,1745615469828,-500.0,0.00027945,2]
[358998602,1745615469838,-500.0,0.00027945,2]
[358998603,1745615469849,-500.0,0.00027945,2]
[358998604,1745615469859,-2148.83,0.00027945,2]
[358998605,1745615469869,-850.15,0.00027945,2]
[358998606,1745615469879,-500.0,0.00027945,2]
[358998607,1745615469890,-500.0,0.00027945,2]
[358998608,1745615469899,-500.0,0.00027945,2]
[358998609,1745615469909,-547.75,0.00027945,2]
[358998610,1745615469919,-500.0,0.00027945,2]
[358998611,1745615469930,-500.0,0.00027945,2]
[358998612,1745615469940,-870.36,0.00027945,2]
[358998613,1745615469950,-704.12,0.00027945,2]
[358998614,1745615469959,-500.0,0.00027945,2]
[358998615,1745615469969,-500.0,0.00027945,2]
[358998616,1745615469978,-568.13,0.00027945,2]
[358998617,1745615469987,-844.27,0.00027945,2]
[358998618,1745615469997,-687.1,0.00027945,2]
[358998619,1745615470007,-500.0,0.00027945,2]
[358998620,1745615470017,-500.0,0.00027945,2]
[358998621,1745615470027,-500.0,0.00027945,2]
[358998622,1745615470040,-500.0,0.00027945,2]
[358998623,1745615470051,-704.15,0.00027945,2]
[358998624,1745615470060,-500.0,0.00027945,2]
[358998625,1745615470070,-500.0,0.00027945,2]
[358998626,1745615470080,-500.0,0.00027945,2]
[358998627,1745615470090,-1090.37,0.00027945,2]
[358998628,1745615470101,-712.4,0.00027945,2]
[358998629,1745615470112,-500.0,0.00027945,2]
[358998630,1745615470122,-500.0,0.00027945,2]
[358998631,1745615470133,-500.0,0.00027945,2]
[358998632,1745615470143,-500.0,0.00027945,2]
[358998633,1745615470153,-350.5050148,0.00027945,2]
[358998634,1745615470164,-947.24,0.00027945,2]
[358998635,1745615470174,-500.0,0.00027945,2]
[358998636,1745615470184,-697.04,0.00027945,2]
[358998637,1745615470194,-500.0,0.00027945,2]
[358998638,1745615470203,-500.0,0.00027945,2]
[358998639,1745615470212,-505.48,0.00027945,2]
[358998640,1745615470222,-920.88,0.00027945,2]
[358998641,1745615470232,-974.37,0.00027945,2]
[358998642,1745615470241,-500.0,0.00027945,2]
[358998643,1745615470251,-692.07,0.00027945,2]
[358998644,1745615470261,-500.0,0.00027945,2]
[358998645,1745615470271,-732.51,0.00027945,2]
[358998646,1745615470280,-500.0,0.00027945,2]
[358998647,1745615470290,-500.0,0.00027945,2]
[358998648,1745615470300,-500.0,0.00027945,2]
[358998649,1745615470310,-658.97,0.00027945,2]
[358998650,1745615470319,-1018.71,0.00027945,2]
[358998651,1745615470328,-500.0,0.00027945,2]
[358998652,1745615470338,-153.251172,0.00027945,7]
[358998653,1745615470348,-500.0,0.00027945,2]
[358998654,1745615470357,-500.0,0.00027945,2]
[358998655,1745615470367,-2420.93,0.00027945,2]
[358998656,1745615470376,-500.0,0.00027945,2]
[358998657,1745615470385,-461.20868438,0.00027945,2]
[358998658,1745615470395,-280.9677065,0.00027945,2]
[358998659,1745615470405,-637.37,0.00027945,2]
[358998660,1745615470414,-500.0,0.00027945,2]
[358998661,1745615470424,-692.8,0.00027945,2]
[358998662,1745615470434,-573.5,0.00027945,2]
[358998663,1745615470443,-500.0,0.00027945,2]
[358998664,1745615470452,-1055.79,0.00027945,2]
[358998665,1745615470462,-549.35,0.00027945,2]
[358998666,1745615470471,-500.0,0.00027945,2]
[358998667,1745615470481,-500.0,0.00027945,2]
[358998668,1745615470491,-500.0,0.00027945,2]
[358998669,1745615470500,-500.0,0.00027945,2]
[358998670,1745615470510,-743.24,0.00027945,2]
[358998671,1745615470521,-311.97,0.00027945,2]
[358998672,1745615470531,-500.0,0.00027945,2]
[358998673,1745615470540,-500.0,0.00027945,2]
[358998674,1745615470549,-500.0,0.00027945,2]
[358998675,1745615470559,-500.0,0.00027945,2]
[358998676,1745615470568,-609.02290865,0.00027945,2]
[358998677,1745615470578,-500.0,0.00027945,2]
[358998678,1745615470587,-500.0,0.00027945,2]
[358998679,1745615470597,-698.98,0.00027945,2]
[358998680,1745615470606,-500.0,0.00027945,2]
[358998681,1745615470617,-828.69,0.00027945,2]
[358998682,1745615470627,-691.21,0.00027945,2]
[358998683,1745615470637,-672.07,0.00027945,2]
[358998684,1745615470646,-500.0,0.00027945,2]
[358998685,1745615470742,-520.92,0.00027945,2]
[358998686,1745615470752,-152.349765,0.00027945,7]
[358998687,1745615470762,-1006.29,0.00027945,2]
[358998688,1745615470777,-500.0,0.00027945,2]
[358998689,1745615470787,-500.0,0.00027945,2]
[358998690,1745615470797,-500.0,0.00027945,2]
[358998691,1745615470807,-730.48,0.00027945,2]
[358998692,1745615470816,-1008.41,0.00027945,2]
[358998693,1745615470826,-514.6295298,0.00027945,2]
[358998694,1745615470835,-816.66,0.00027945,2]
[358998695,1745615470845,-500.0,0.00027945,2]
[358998696,1745615470854,-500.0,0.00027945,2]
[358998697,1745615470863,-500.0,0.00027945,2]
[358998698,1745615470873,-500.0,0.00027945,2]
[358998699,1745615470882,-795.49,0.00027945,2]
[358998700,1745615470891,-1095.56,0.00027945,2]
[358998701,1745615470900,-500.0,0.00027945,2]
[358998702,1745615470910,-500.0,0.00027945,2]
[358998703,1745615470919,-500.0,0.00027945,2]
[358998704,1745615470929,-932.81,0.00027945,2]
[358998705,1745615470939,-699.57,0.00027945,2]
[358998706,1745615470950,-500.0,0.00027945,2]
[358998707,1745615470961,-694.23,0.00027945,2]
[358998708,1745615470970,-1005.28,0.00027945,2]
[358998709,1745615470980,-1062.04,0.00027945,2]
[358998710,1745615470990,-500.0,0.00027945,2]
[358998711,1745615470999,-500.0,0.00027945,2]
[358998712,1745615471009,-500.0,0.00027945,2]
[358998713,1745615471020,-549.31865576,0.00027945,2]
[358998714,1745615471029,-500.0,0.00027945,2]
[358998715,1745615471038,-500.0,0.00027945,2]
[358998716,1745615471047,-500.0,0.00027945,2]
[358998717,1745615471057,-573.18,0.00027945,2]
[358998718,1745615471066,-500.0,0.00027945,2]
[358998719,1745615471075,-500.0,0.00027945,2]
[358998720,1745615471084,-361.22970693,0.00027945,2]
[358998721,1745615471098,-500.0,0.00027945,2]
[358998722,1745615471108,-558.74,0.00027945,2]
[358998723,1745615471117,-500.0,0.00027945,2]
[358998724,1745615471127,-683.23,0.00027945,2]
[358998725,1745615471136,-500.0,0.00027945,2]
[358998726,1745615471145,-500.0,0.00027945,2]
[358998727,1745615471155,-861.36,0.00027945,2]
[358998728,1745615471164,-500.0,0.00027945,2]
[358998729,1745615471174,-500.0,0.00027945,2]
[358998730,1745615471183,-500.0,0.00027945,2]
[358998731,1745615471192,-500.0,0.00027945,2]
[358998732,1745615471202,-570.04218938,0.00027945,2]
[358998733,1745615471212,-727.27,0.00027945,2]
[358998734,1745615471221,-500.0,0.00027945,2]
[358998735,1745615471230,-239.27904605,0.00027945,2]
[358998736,1745615471240,-500.0,0.00027945,2]
[358998737,1745615471250,-589.31,0.00027945,2]
[358998738,1745615471260,-500.0,0.00027945,2]
[358998739,1745615471273,-848.22,0.00027945,2]
[358998740,1745615471282,-1368.13,0.00027945,2]
[358998741,1745615471292,-151.0,0.00027945,7]
[358998742,1745615471302,-594.94,0.00027945,2]
[358998743,1745615471312,-700.55,0.00027945,2]
[358998744,1745615471321,-500.0,0.00027945,2]
[358998745,1745615471331,-151.0,0.00027945,7]
[358998746,1745615471340,-1117.09,0.00027945,2]
[358998747,1745615471350,-500.0,0.00027945,2]
[358998748,1745615471359,-1328.1,0.00027945,2]
[358998749,1745615471369,-500.0,0.00027945,2]
[358998750,1745615471378,-500.0,0.00027945,2]
[358998751,1745615471387,-524.02,0.00027945,2]
[358998752,1745615471397,-500.0,0.00027945,2]
[358998753,1745615471406,-500.0,0.00027945,2]
[358998754,1745615471415,-1667.26,0.00027945,2]
[358998755,1745615471424,-903.49,0.00027945,2]
[358998756,1745615471434,-871.82,0.00027945,2]
[358998757,1745615471443,-500.0,0.00027945,2]
[358998758,1745615471452,-500.0,0.00027945,2]
[358998759,1745615471461,-500.0,0.00027945,2]
[358998760,1745615471471,-691.13,0.00027945,2]
[358998761,1745615471480,-500.0,0.00027945,2]
[358998762,1745615471489,-500.0,0.00027945,2]
[358998763,1745615471499,-505.53,0.00027945,2]
[358998764,1745615471508,-500.0,0.00027945,2]
[358998765,1745615471518,-500.0,0.00027945,2]
[358998766,1745615471528,-565.01,0.00027945,2]
[358998767,1745615471537,-500.0,0.00027945,2]
[358998768,1745615471560,-768.41,0.00027945,2]
[358998769,1745615471570,-500.0,0.00027945,2]
[358998770,1745615471580,-500.0,0.00027945,2]
[358998771,1745615471590,-151.58162027,0.00027945,2]
[358998772,1745615471600,-500.0,0.00027945,2]
[358998773,1745615471610,-500.0,0.00027945,2]
[358998774,1745615471620,-500.0,0.00027945,2]
[358998775,1745615471630,-1675.29,0.00027945,2]
[358998776,1745615471640,-500.0,0.00027945,2]
[358998777,1745615471650,-1493.7,0.00027945,2]
[358998778,1745615471659,-500.0,0.00027945,2]
[358998779,1745615471669,-500.0,0.00027945,2]
[358998780,1745615471678,-809.22,0.00027945,2]
[358998781,1745615471688,-500.0,0.00027945,2]
[358998782,1745615471697,-500.0,0.00027945,2]
[358998783,1745615471707,-500.0,0.00027945,2]
[358998784,1745615471717,-500.0,0.00027945,2]
[358998785,1745615471727,-500.0,0.00027945,2]
[358998786,1745615471738,-500.0,0.00027945,2]
[358998787,1745615471750,-500.0,0.00027945,2]
[358998788,1745615471759,-500.0,0.00027945,2]
[358998789,1745615471772,-500.0,0.00027945,2]
[358998790,1745615471782,-500.0,0.00027945,2]
[358998791,1745615471792,-500.0,0.00027945,2]
[358998792,1745615471801,-500.0,0.00027945,2]
[358998793,1745615471811,-500.0,0.00027945,2]
[358998794,1745615471820,-617.3,0.00027945,2]
[358998795,1745615471830,-500.0,0.00027945,2]
[358998796,1745615471839,-500.0,0.00027945,2]
[358998797,1745615471849,-500.0,0.00027945,2]
[358998798,1745615471858,-707.29,0.00027945,2]
[358998799,1745615471868,-300.0,0.00027945,2]
[358998800,1745615471877,-500.0,0.00027945,2]
[358998801,1745615471886,-500.0,0.00027945,2]
[358998802,1745615471896,-500.0,0.00027945,2]
[358998803,1745615471906,-500.0,0.00027945,2]
[358998804,1745615471917,-500.0,0.00027945,2]
[358998805,1745615471928,-828.2,0.00027945,2]
[358998806,1745615471939,-500.0,0.00027945,2]
[358998807,1745615471950,-1007.12,0.00027945,2]
[358998808,1745615471960,-504.64,0.00027945,2]
[358998809,1745615471970,-500.0,0.00027945,2]
[358998810,1745615471981,-870.41,0.00027945,2]
[358998811,1745615471992,-500.0,0.00027945,2]
[358998812,1745615472008,-500.0,0.00027945,2]
[358998813,1745615472019,-500.0,0.00027945,2]
[358998814,1745615472030,-500.0,0.00027945,2]
[358998815,1745615472040,-500.0,0.00027945,2]
[358998816,1745615472050,-634.25,0.00027945,2]
[358998817,1745615472060,-898.18,0.00027945,2]
[358998818,1745615472070,-500.0,0.00027945,2]
[358998819,1745615472080,-500.0,0.00027945,2]
[358998820,1745615472090,-500.0,0.00027945,2]
[358998821,1745615472101,-500.0,0.00027945,2]
[358998822,1745615472111,-650.13,0.00027945,2]
[358998823,1745615472122,-194.13286492,0.00027945,2]
[358998824,1745615472132,-500.0,0.00027945,2]
[358998825,1745615472142,-500.0,0.00027945,2]
[358998826,1745615472152,-961.01,0.00027945,2]
[358998827,1745615472162,-500.0,0.00027945,2]
[358998828,1745615472173,-500.0,0.00027945,2]
[358998829,1745615472183,-500.0,0.00027945,2]
[358998830,1745615472194,-892.66,0.00027945,2]
[358998831,1745615472205,-390.88139786,0.00027945,2]
[358998832,1745615472216,-500.0,0.00027945,2]
[358998833,1745615472226,-500.0,0.00027945,2]
[358998834,1745615472237,-500.0,0.00027945,2]
[358998835,1745615472248,-500.0,0.00027945,2]
[358998836,1745615472259,-500.0,0.00027945,2]
[358998837,1745615472272,-743.74,0.00027945,2]
[358998838,1745615472283,-500.0,0.00027945,2]
[358998839,1745615472293,-500.0,0.00027945,2]
[358998840,1745615472303,-500.0,0.00027945,2]
[358998841,1745615472313,-500.0,0.00027945,2]
[358998842,1745615472323,-500.0,0.00027945,2]
[358998843,1745615472333,-838.2,0.00027945,2]
[358998844,1745615472343,-500.0,0.00027945,2]
[358998845,1745615472353,-2157.83,0.00027945,2]
[358998846,1745615472363,-500.0,0.00027945,2]
[358998847,1745615472373,-156.34320295,0.00027945,2]
[358998848,1745615472384,-500.0,0.00027945,2]
[358998849,1745615472394,-500.0,0.00027945,2]
[358998850,1745615472404,-952.46,0.00027945,2]
[358998851,1745615472414,-993.69,0.00027945,2]
[358998852,1745615472424,-500.0,0.00027945,2]
[358998853,1745615472434,-500.0,0.00027945,2]
[358998854,1745615472450,-500.0,0.00027945,2]
[358998855,1745615472461,-856.86,0.00027945,2]
[358998856,1745615472472,-500.0,0.00027945,2]
[358998857,1745615472482,-500.0,0.00027945,2]
[358998858,1745615472492,-500.0,0.00027945,2]
[358998859,1745615472502,-500.0,0.00027945,2]
[358998860,1745615472512,-500.0,0.00027945,2]
[358998861,1745615472524,-913.6,0.00027945,2]
[358998862,1745615472534,-895.68,0.00027945,2]
[358998863,1745615472544,-550.22,0.00027945,2]
[358998864,1745615472555,-500.0,0.00027945,2]
[358998865,1745615472565,-500.0,0.00027945,2]
[358998866,1745615472575,-623.86,0.00027945,2]
[358998867,1745615472586,-1062.92,0.00027945,2]
[358998868,1745615472596,-500.0,0.00027945,2]
[358998869,1745615472606,-500.0,0.00027945,2]
[358998870,1745615472616,-500.0,0.00027945,2]
[358998871,1745615472627,-500.0,0.00027945,2]
[358998872,1745615472637,-394.77037997,0.00027945,2]
[358998873,1745615472648,-500.0,0.00027945,2]
[358998874,1745615472658,-500.0,0.00027945,2]
[358998875,1745615472668,-500.0,0.00027945,2]
[358998876,1745615472678,-471.88366777,0.00027945,2]
[358998877,1745615472689,-831.29,0.00027945,2]
[358998878,1745615472700,-345.47899147,0.00027945,2]
[358998879,1745615472710,-500.0,0.00027945,2]
[358998880,1745615472720,-500.0,0.00027945,2]
[358998881,1745615472731,-500.0,0.00027945,2]
[358998882,1745615472742,-500.0,0.00027945,2]
[358998883,1745615472752,-670.38,0.00027945,2]
[358998884,1745615472762,-500.0,0.00027945,2]
[358998885,1745615472778,-500.0,0.00027945,2]
[358998886,1745615472790,-500.0,0.00027945,2]
[358998887,1745615472801,-500.0,0.00027945,2]
[358998888,1745615472811,-384.22,0.00027945,2]
[358998889,1745615472821,-500.0,0.00027945,2]
[358998890,1745615472831,-500.0,0.00027945,2]
[358998891,1745615472842,-2507.6,0.00027945,2]
[358998892,1745615472853,-527.09,0.00027945,2]
[358998893,1745615472863,-589.15,0.00027945,2]
[358998894,1745615472873,-500.0,0.00027945,2]
[358998895,1745615472884,-500.0,0.00027945,2]
[358998896,1745615472898,-336.98682689,0.00027945,2]
[358998897,1745615472908,-500.0,0.00027945,2]
[358998898,1745615472919,-1298.62,0.00027945,2]
[358998899,1745615472930,-890.2,0.00027945,2]
[358998900,1745615472940,-585.14,0.00027945,2]
[358998901,1745615472951,-831.47,0.00027945,2]
[358998902,1745615472961,-500.0,0.00027945,2]
[358998903,1745615472972,-500.0,0.00027945,2]
[358998904,1745615472981,-500.0,0.00027945,2]
[358998905,1745615472991,-776.96,0.00027945,2]
[358998906,1745615473003,-845.97,0.00027945,2]
[358998907,1745615473013,-500.0,0.00027945,2]
[358998908,1745615473024,-703.57,0.00027945,2]
[358998909,1745615473035,-811.1,0.00027945,2]
[358998910,1745615473044,-500.0,0.00027945,2]
[358998911,1745615473055,-500.0,0.00027945,2]
[358998912,1745615473065,-500.0,0.00027945,2]
[358998913,1745615473074,-500.0,0.00027945,2]
[358998914,1745615473085,-500.0,0.00027945,2]
[358998915,1745615473095,-500.0,0.00027945,2]
[358998916,1745615473105,-572.32,0.00027945,2]
[358998917,1745615473116,-500.0,0.00027945,2]
[358998918,1745615473126,-500.0,0.00027945,2]
[358998919,1745615473136,-575.85,0.00027945,2]
[358998920,1745615473147,-500.0,0.00027945,2]
[358998921,1745615473157,-500.0,0.00027945,2]
[358998922,1745615473168,-500.0,0.00027945,2]
[358998923,1745615473179,-565.04025404,0.00027945,2]
[358998924,1745615473189,-915.77,0.00027945,2]
[358998925,1745615473199,-500.0,0.00027945,2]
[358998926,1745615473210,-891.36,0.00027945,2]
[358998927,1745615473221,-500.0,0.00027945,2]
[358998928,1745615473231,-500.0,0.00027945,2]
[358998929,1745615473242,-500.0,0.00027945,2]
[358998930,1745615473252,-500.0,0.00027945,2]
[358998931,1745615473262,-500.0,0.00027945,2]
[358998932,1745615473274,-500.0,0.00027945,2]
[358998933,1745615473285,-698.19,0.00027945,2]
[358998934,1745615473295,-905.34,0.00027945,2]
[358998935,1745615473305,-932.86,0.00027945,2]
[358998936,1745615473316,-500.0,0.00027945,2]
[358998937,1745615473326,-500.0,0.00027945,2]
[358998938,1745615473347,-500.0,0.00027945,2]
[358998939,1745615473358,-151.0,0.00027945,7]
[358998940,1745615473368,-500.0,0.00027945,2]
[358998941,1745615473378,-500.0,0.00027945,2]
[358998942,1745615473388,-1270.11,0.00027945,2]
[358998943,1745615473399,-500.0,0.00027945,2]
[358998944,1745615473408,-886.28,0.00027945,2]
[358998945,1745615473419,-785.06,0.00027945,2]
[358998946,1745615473429,-500.0,0.00027945,2]
[358998947,1745615473440,-500.0,0.00027945,2]
[358998948,1745615473450,-500.0,0.00027945,2]
[358998949,1745615473460,-980.12,0.00027945,2]
[358998950,1745615473470,-806.68,0.00027945,2]
[358998951,1745615473480,-500.0,0.00027945,2]
[358998952,1745615473490,-500.0,0.00027945,2]
[358998953,1745615473501,-780.33,0.00027945,2]
[358998954,1745615473512,-893.71,0.00027945,2]
[358998955,1745615473522,-507.22,0.00027945,2]
[358998956,1745615473532,-500.0,0.00027945,2]
[358998957,1745615473542,-523.05,0.00027945,2]
[358998958,1745615473553,-500.0,0.00027945,2]
[358998959,1745615473563,-500.0,0.00027945,2]
[358998960,1745615473573,-500.0,0.00027945,2]
[358998961,1745615473584,-500.0,0.00027945,2]
[358998962,1745615473594,-943.92,0.00027945,2]
[358998963,1745615473604,-500.0,0.00027945,2]
[358998964,1745615473614,-500.0,0.00027945,2]
[358998965,1745615473624,-500.0,0.00027945,2]
[358998966,1745615473635,-1751.04,0.00027945,2]
[358998967,1745615473645,-774.49,0.00027945,2]
[358998968,1745615473654,-500.0,0.00027945,2]
[358998969,1745615473664,-500.0,0.00027945,2]
[358998970,1745615473674,-500.0,0.00027945,2]
[358998971,1745615473684,-500.0,0.00027945,2]
[358998972,1745615473694,-500.0,0.00027945,2]
[358998973,1745615473704,-500.0,0.00027945,2]
[358998974,1745615473714,-500.0,0.00027945,2]
[358998975,1745615473724,-1094.55,0.00027945,2]
[358998976,1745615473734,-500.0,0.00027945,2]
[358998977,1745615473745,-500.0,0.00027945,2]
[358998978,1745615473755,-739.63,0.00027945,2]
[358998979,1745615473766,-550.56819906,0.00027945,2]
[358998980,1745615473781,-151.0,0.00027945,7]
[358998981,1745615473791,-572.07511527,0.00027945,2]
[358998982,1745615473801,-1593.03,0.00027945,2]
[358998983,1745615473811,-500.0,0.00027945,2]
[358998984,1745615473820,-3816.96,0.00027945,2]
[358998985,1745615473830,-500.0,0.00027945,2]
[358998986,1745615473840,-500.0,0.00027945,2]
[358998987,1745615473851,-670.5,0.00027945,2]
[358998988,1745615473861,-1013.01,0.00027945,2]
[358998989,1745615473871,-519.41850551,0.00027945,2]
[358998990,1745615473881,-500.0,0.00027945,2]
[358998991,1745615473890,-500.0,0.00027945,2]
[358998992,1745615473900,-500.0,0.00027945,2]
[358998993,1745615473910,-4576.01,0.00027945,2]
[358998994,1745615473920,-1221.39,0.00027945,2]
[358998995,1745615473930,-627.74,0.00027945,2]
[358998996,1745615473940,-970.1,0.00027945,2]
[358998997,1745615473950,-500.0,0.00027945,2]
[358998998,1745615473960,-502.64,0.00027945,2]
[358998999,1745615473970,-500.0,0.00027945,2]
[358999000,1745615473980,-907.53,0.00027945,2]
[358999001,1745615473989,-588.79,0.00027945,2]
[358999002,1745615473999,-553.9522907,0.00027945,2]
[358999003,1745615474010,-500.0,0.00027945,2]
[358999004,1745615474020,-697.19,0.00027945,2]
[358999005,1745615474029,-704.54,0.00027945,2]
[358999006,1745615474039,-500.0,0.00027945,2]
[358999007,1745615474049,-500.0,0.00027945,2]
[358999008,1745615474060,-855.81,0.00027945,2]
[358999009,1745615474069,-500.0,0.00027945,2]
[358999010,1745615474079,-726.67,0.00027945,2]
[358999011,1745615474090,-500.0,0.00027945,2]
[358999012,1745615474100,-500.0,0.00027945,2]
[358999013,1745615474110,-579.66,0.00027945,2]
[358999014,1745615474120,-500.0,0.00027945,2]
[358999015,1745615474130,-835.92,0.00027945,2]
[358999016,1745615474140,-500.0,0.00027945,2]
[358999017,1745615474150,-500.0,0.00027945,2]
[358999018,1745615474161,-500.0,0.00027945,2]
[358999019,1745615474171,-500.0,0.00027945,2]
[358999020,1745615474181,-500.0,0.00027945,2]
[358999021,1745615474191,-500.0,0.00027945,2]
[358999022,1745615474201,-619.7,0.00027945,2]
[358999023,1745615474211,-500.0,0.00027945,2]
[358999024,1745615474225,-608.35863215,0.00027945,2]
[358999025,1745615474235,-500.0,0.00027945,2]
[358999026,1745615474246,-500.0,0.00027945,2]
[358999027,1745615474256,-963.31,0.00027945,2]
[358999028,1745615474265,-500.0,0.00027945,2]
[358999029,1745615474277,-500.0,0.00027945,2]
[358999030,1745615474287,-1567.4,0.00027945,2]
[358999031,1745615474297,-500.0,0.00027945,2]
[358999032,1745615474307,-574.30588978,0.00027945,2]
[358999033,1745615474318,-500.0,0.00027945,2]
[358999034,1745615474328,-500.0,0.00027945,2]
[358999035,1745615474339,-500.0,0.00027945,2]
[358999036,1745615474349,-500.0,0.00027945,2]
[358999037,1745615474360,-907.43,0.00027945,2]
[358999038,1745615474370,-5207.23,0.00027945,2]
[358999039,1745615474380,-688.53,0.00027945,2]
[358999040,1745615474390,-929.97,0.00027945,2]
[358999041,1745615474400,-500.0,0.00027945,2]
[358999042,1745615474410,-500.0,0.00027945,2]
[358999043,1745615474420,-500.0,0.00027945,2]
[358999044,1745615474430,-500.0,0.00027945,2]
[358999045,1745615474440,-945.87,0.00027945,2]
[358999046,1745615474450,-500.0,0.00027945,2]
[358999047,1745615474460,-500.0,0.00027945,2]
[358999048,1745615474470,-754.41,0.00027945,2]
[358999049,1745615474480,-500.0,0.00027945,2]
[358999050,1745615474491,-205.772265,0.00027945,7]
[358999051,1745615474500,-500.0,0.00027945,2]
[358999052,1745615474511,-790.79,0.00027945,2]
[358999053,1745615474520,-616.47,0.00027945,2]
[358999054,1745615474530,-500.0,0.00027945,2]
[358999055,1745615474540,-500.0,0.00027945,2]
[358999056,1745615474550,-500.0,0.00027945,2]
[358999057,1745615474560,-500.0,0.00027945,2]
[358999058,1745615474570,-205.772265,0.00027945,7]
[358999059,1745615474579,-500.0,0.00027945,2]
[358999060,1745615474589,-500.0,0.00027945,2]
[358999061,1745615474599,-592.69090878,0.00027945,2]
[358999062,1745615474611,-592.92,0.00027945,2]
[358999063,1745615474622,-124101.79,0.00027945,2]
[358999064,1745615474633,-834.98,0.00027945,2]
[358999065,1745615474643,-650.3,0.00027945,2]
[358999066,1745615474652,-500.0,0.00027945,2]
[358999067,1745615474666,-500.0,0.00027945,2]
[358999068,1745615474677,-4814.57,0.00027945,2]
[358999069,1745615474686,-726.61,0.00027945,2]
[358999070,1745615474697,-969.73,0.00027945,2]
[358999071,1745615474706,-500.0,0.00027945,2]
[358999072,1745615474716,-500.0,0.00027945,2]
[358999073,1745615474726,-500.0,0.00027945,2]
[358999074,1745615474736,-500.0,0.00027945,2]
[358999075,1745615474748,-500.0,0.00027945,2]
[358999076,1745615474759,-500.0,0.00027945,2]
[358999077,1745615474773,-500.0,0.00027945,2]
[358999078,1745615474785,-711.33,0.00027945,2]
[358999079,1745615474795,-500.0,0.00027945,2]
[358999080,1745615474806,-501.87,0.00027945,2]
[358999081,1745615474817,-17001.41,0.00027945,2]
[358999082,1745615474829,-500.0,0.00027945,2]
[358999083,1745615474841,-500.0,0.00027945,2]
[358999084,1745615474852,-897.35,0.00027945,2]
[358999085,1745615474863,-986.86,0.00027945,2]
[358999086,1745615474873,-767.33,0.00027945,2]
[358999087,1745615474885,-1136.23,0.00027945,2]
[358999088,1745615474897,-630.11,0.00027945,2]
[358999089,1745615474909,-603.88,0.00027945,2]
[358999090,1745615474919,-500.0,0.00027945,2]
[358999091,1745615474931,-500.0,0.00027945,2]
[358999092,1745615474944,-500.0,0.00027945,2]
[358999093,1745615474955,-8864.74,0.00027945,2]
[358999094,1745615474967,-500.0,0.00027945,2]
[358999095,1745615474977,-500.0,0.00027945,2]
[358999096,1745615474989,-761.29,0.00027945,2]
[358999097,1745615475001,-500.0,0.00027945,2]
[358999098,1745615475012,-763.85,0.00027945,2]
[358999099,1745615475023,-151.0,0.00027945,7]
[358999100,1745615475036,-1933.45,0.00027945,2]